Cogmind - Beta 17 @@@ ROGUE MODE // 2026.07.31 @ 05:48:04 Player: MrFartsburg Result: Destroyed by EH-XG9(R) with Subdweller Beam Cannon Performance ------------- Evolutions (0) 0 Regions Visited (2) 400 Robots Destroyed (5) 25 Value Destroyed (100) 100 Prototype IDs (0) 0 Alien Tech Used (0) 0 Bonus (0) 0 TOTAL SCORE: 525 Bonus ------- None Cogmind --------- Core Integrity 0/250 Matter 194/300 Energy 70/100 System Corruption 10% Temperature Cool (9) Movement Rolling (110) Location -10/Subcaves Parts ------- > --- POWER (1) -------- (None) > --- PROPULSION (2) --- Aluminum Leg Subdweller Monowheel > --- UTILITY (2) ------ Medium Storage Unit > --- WEAPON (2) ------- Small Laser Multitool > --- INVENTORY (10) --- Ion Engine Wheel Light Assault Rifle Peak State ------------ > --- POWER ------------ Ion Engine > --- PROPULSION ------- Wheel Wheel > --- UTILITY ---------- Small Storage Unit Terrain Scanner > --- WEAPON ----------- Assault Rifle Light Assault Rifle > --- INVENTORY -------- Ion Engine Aluminum Leg Aluminum Leg Small Laser Grenade Launcher [Rating: 7] Favorites ----------- Power Ion Engine Engine Ion Engine Propulsion Aluminum Leg Leg Aluminum Leg Wheel Wheel Utility Terrain Scanner Device Terrain Scanner Storage Medium Storage Unit Weapon Assault Rifle Energy Gun Small Laser Ballistic Gun Assault Rifle Launcher Grenade Launcher Special Weapon Multitool Slashing Weapon Mining Claw Build | -11 -10 -10 ------- Run | Yrd Mat Sub Slots Evolved . | . . . Power . | . . . Propulsion . | . . . Utility . | . . . Weapon . | . . . Parts Attached 17 | 6 7 4 Power 1 | 1 . . Engine 1 | 1 . . Core . | . . . Reactor . | . . . Propulsion 5 | 2 2 1 Treads . | . . . Leg 2 | . 2 . Wheel 3 | 2 . 1 Hover . | . . . Flight . | . . . Utility 4 | 1 2 1 Device 2 | . 1 1 Storage 2 | 1 1 . Processor . | . . . Hackware . | . . . Protection . | . . . Artifact . | . . . Weapon 7 | 2 3 2 Energy Gun 1 | . . 1 Energy Cannon . | . . . Ballistic Gun 2 | 2 . . Ballistic Cannon . | . . . Launcher 1 | . 1 . Special Weapon 1 | . . 1 Impact Weapon . | . . . Slashing Weapon 2 | . 2 . Piercing Weapon . | . . . Special Melee Weapon . | . . . Unidentified Prototypes . | . . . Parts Lost 10 | . 4 6 Power 1 | . . 1 Propulsion 3 | . 2 1 Utility 2 | . . 2 Weapon 4 | . 2 2 Highest Loss Streak 4 | . 3 4 To Critical Strikes . | . . . Average Backups 5 | 1 6 5 Power . | . 1 1 Propulsion 1 | . 2 1 Utility . | . . . Weapon 1 | . 1 2 Tool/Special . | . . . Unused Backups 3 | . 1 2 Power 2 | . 1 1 Propulsion 1 | . . 1 Utility . | . . . Weapon . | . . . Tool/Special . | . . . Average Slot Usage (%) 78 | . 75 83 Engine 13 | . 14 12 Leg 9 | . . 26 Wheel 7 | . 12 1 Device 12 | . 12 11 Storage 14 | . 14 14 Ballistic Gun 11 | . 16 3 Slashing Weapon 8 | . 5 13 Peak Build Rating 7 | 6 7 7 Average Rating 5 | 4 5 5 On Entrance 4 | . 6 7 Avg Prop Armor Cover (%) 18 | . . 18 Naked Turns . | . . . Heaviest Build 20 | 13 20 20 Greatest Support 20 | 20 20 20 Greatest Overweight (x) 6 | . 6 1 Average Overweight (x) . | . 1 . Largest Inventory Capacity 10 | 8 10 10 Average Capacity 9 | 6 9 10 Most Carried 8 | 4 8 6 Average Carried 5 | 1 6 4 Final Capacity 10 | 8 10 10 Final Carried 5 | 4 5 3 Class Distribution -------------------- 100% | Mutant Dominant Class ---------------- Mutant | -10/Materials Mutant | -10/Subcaves Resources | -11 -10 -10 ----------- Run | Yrd Mat Sub Matter Collected 311 | 207 104 . Remotely . | . . . Salvage Created 151 | . 151 . Parts 9 | . 9 . Haulers Intercepted . | . . . Recyclers Shooed . | . . . Parts Field Recycled . | . . . Retrieved Matter . | . . . Parts Self-Destructed 6 | . . 6 Prevented . | . . . Parts Restored . | . . . Kills | -11 -10 -10 ------- Run | Yrd Mat Sub Combat Hostiles Destroyed 2 | . 2 . AOE 2 | . 2 . Classes Destroyed 4 | . 4 . Worker 1 | . 1 . Builder 1 | . 1 . Recycler 1 | . 1 . Grunt 2 | . 2 . Best Kill Streak 2 | . 2 . Combat Bots Only 2 | . 2 . Max Kills in Single Turn 1 | . 1 . Gunslinging . | . . . Exploded 1 | . 1 . Melee . | . . . Uniques/NPCs Destroyed . | . . . Combat | -11 -10 -10 -------- Run | Yrd Mat Sub Hostile Shots Fired 63 | . 1 62 Missed 32 | . . 32 Hits 31 | . 1 30 Projectile 31 | . 1 30 Critical Strikes 1 | . . 1 Damage Taken 1116 | . 389 727 Core 265 | . 48 217 Absorbed by Shields . | . . . Core Remaining (%) 100 | 100 . . Volleys Fired 7 | . 7 . Largest 2 | . 2 . Hottest 50 | . 50 . Shots Fired 12 | . 12 . Gun 7 | . 7 . Cannon . | . . . Launcher 5 | . 5 . Special . | . . . Kinetic 7 | . 7 . Thermal . | . . . Explosive 5 | . 5 . Electromagnetic . | . . . Robot Hit Streak 1 | . 1 . Robot Miss Streak 1 | . 1 . Penetration Max . | . . . Secondary Targets . | . . . Shots Hit Robots 4 | . 4 . Core Hits 6 | . 6 . Critical Kills . | . . . Critical Parts Destroyed . | . . . Critical Strikes . | . . . Melee Attacks 23 | . 15 8 Impact . | . . . Slashing 23 | . 15 8 Piercing . | . . . Sneak Attacks 3 | . 3 . Combat Hostiles . | . . . Follow-up Attacks . | . . . Damage Inflicted 282 | . 282 . Guns 14 | . 14 . Cannons . | . . . Explosions 122 | . 122 . Melee 144 | . 144 . Ramming 2 | . 2 . Kinetic 14 | . 14 . Thermal . | . . . Explosive 122 | . 122 . Electromagnetic . | . . . Impact . | . . . Slashing 144 | . 144 . Piercing . | . . . Highest Corruption 10 | . 10 10 Average Corruption 7 | . 6 10 Corruption Purged . | . . . Corruption Blocked . | . . . Effects 27 | . 14 13 Message Errors 7 | . 4 3 Matter Fused 2 | . 1 1 Heat Flow Errors 3 | . 2 1 Energy Discharges 2 | . 1 1 Parts Rejected 2 | . . 2 Parts Fused 1 | . 1 . Data Loss (minor) 8 | . 4 4 Alerts 1 | . 1 . Misdirections 1 | . . 1 Overload Shots . | . . . Overflow Damage 45 | . 45 . Projectiles . | . . . Explosions 24 | . 24 . Melee 21 | . 21 . Knockbacks . | . . . Impact . | . . . Kinetic . | . . . Secondary . | . . . Self-Inflicted Damage 118 | . 118 . Shots 3 | . 3 . Rammed 4 | 1 3 . Targets Rammed 4 | 1 3 . Kicked . | . . . Crushed . | . . . Highest Temperature 266 | . 266 127 Average Temperature 106 | . 114 69 Received Heat Transfer 144 | . 9 135 Siege Activations . | . . . Martial Activations . | . . . Shielding Activations . | . . . Robots Disrupted . | . . . Combat Hostiles . | . . . Robots Corrupted . | . . . Combat Hostiles . | . . . Parts Fried . | . . . Impact Corruptions . | . . . Robots Melted . | . . . Combat Hostiles . | . . . Parts Melted . | . . . Heat Transferred . | . . . Parts Sabotaged . | . . . Parts Stolen . | . . . Parts Stripped . | . . . Power Chain Reactions . | . . . Alert | -11 -10 -10 ------- Run | Yrd Mat Sub Maximum Alert Level . | . . . Low Security (%) 100 | 100 100 . Level 1 . | . . . Level 2 . | . . . Level 3 . | . . . Level 4 . | . . . Level 5 . | . . . High Security . | . . . Max Security . | . . . Peak Influence 79 | . 79 . Initial . | . . . Average 14 | . 15 . Influence Increases 118 | . 118 . Destroy 0b10 Robot/C 40 | . 40 . Destroy 0b10 Robot/NC 15 | . 15 . Disable Machine 30 | . 30 . Destroy Structure 33 | . 33 . Influence Decreases 118 | . 117 1 Entered New Map 1 | . . 1 Time Decay 77 | . 77 . Lost Part 40 | . 40 . Squads Dispatched . | . . . Investigation . | . . . Extermination . | . . . Reinforcement . | . . . Assault . | . . . Garrison . | . . . Intercept . | . . . Searches Triggered . | . . . Construction Impeded . | . . . Haulers Reinforced . | . . . Active Scanning Responses . | . . . Cargo Convoy Interrupts . | . . . Stealth | -11 -10 -10 --------- Run | Yrd Mat Sub Distress Signals 1 | . 1 . Communications Jammed . | . . . Distress Signals . | . . . Times Spotted 5 | . 3 2 Peak Tracking Total 2 | . 2 2 Tactical Retreats . | . . . Traps | -11 -10 -10 ------- Run | Yrd Mat Sub Traps Triggered . | . . . Indirectly . | . . . Trap Hack Attempts . | . . . Triggered . | . . . Disarmed . | . . . Reprogrammed . | . . . Reused . | . . . Traps Extracted . | . . . Installed . | . . . Triggered . | . . . Machines | -11 -10 -10 ---------- Run | Yrd Mat Sub Machines Disabled 2 | . 2 . Max in Single Turn 1 | . 1 . Machines Repaired . | . . . Machines Dismantled . | . . . Machines Sabotaged . | . . . Overloaded Fab Kills . | . . . Hacking | -11 -10 -10 --------- Run | Yrd Mat Sub Machines Accessed . | . . . Terminals . | . . . Fabricators . | . . . Repair Stations . | . . . Recycling Units . | . . . Scanalyzers . | . . . Garrison Access . | . . . Total Hacks . | . . . Successful . | . . . Failed . | . . . Catastrophic . | . . . Database Lockouts . | . . . Manual . | . . . Terminals . | . . . Fabricators . | . . . Repair Stations . | . . . Recycling Units . | . . . Scanalyzers . | . . . Garrison Access . | . . . Terminal Hacks . | . . . Fabricator Hacks . | . . . Repair Station Hacks . | . . . Recycling Unit Hacks . | . . . Scanalyzer . | . . . Garrison Access Hacks . | . . . Unauthorized Hacks . | . . . Terminals . | . . . Fabricators . | . . . Repair Stations . | . . . Recycling Units . | . . . Scanalyzers . | . . . Garrison Access . | . . . Data Cores Recovered . | . . . Used . | . . . Hacking Detections . | . . . Full Trace Events . | . . . Feedback Events . | . . . Feedback Blocked . | . . . Robot Schematics Acquired . | . . . Robots Built . | . . . Authchips . | . . . Time . | . . . Total Robot Build Rating . | . . . Part Schematics Acquired . | . . . Parts Built . | . . . Authchips . | . . . Time . | . . . Total Part Build Rating . | . . . Part Studies Acquired . | . . . Parts Repaired . | . . . Time . | . . . Parts Recycled . | . . . Recycled Matter . | . . . Retrieved Matter . | . . . Retrieved Components . | . . . Parts Scanalyzed . | . . . Part Schematics Acquired . | . . . Parts Damaged . | . . . Bothacking | -11 -10 -10 ------------ Run | Yrd Mat Sub Used RIF Installer . | . . . Robots Hacked . | . . . Non-combat . | . . . Combat . | . . . Robot Hacks Applied . | . . . Relay Couplers Released . | . . . Fabnet Peak Effective % . | . . . Robots Rewired . | . . . Allies Hacked . | . . . Hacks Repelled . | . . . Allies | -11 -10 -10 -------- Run | Yrd Mat Sub Total Allies . | . . . Largest Group . | . . . Highest-Rated Group . | . . . Highest-Rated Ally . | . . . Total Orders . | . . . Ally Attacks . | . . . Total Damage . | . . . Kills . | . . . Allies Corrupted . | . . . Allies Melted . | . . . Intel | -11 -10 -10 ------- Run | Yrd Mat Sub Active Infowar (turns) 630 | . 427 203 Terrain 630 | . 427 203 Robot Analysis Total . | . . . Derelict Logs Recovered 1 | . . 1 Drone Launches . | . . . Drone Recoveries . | . . . Exploration | -11 -10 -10 ------------- Run | Yrd Mat Sub Turns Passed 823 | 56 478 289 Spaces Moved 486 | 50 225 211 Core 86 | 3 83 . Treads . | . . . Legs 189 | . 4 185 Wheels 211 | 47 138 26 Hover . | . . . Flight . | . . . Fastest Speed 50 | 50 80 110 Average Speed 137 | 78 166 120 Slowest Speed 350 | 80 350 190 Overloaded Moves . | . . . Propulsion Burnouts . | . . . Robots Hopped . | . . . Potential Cave-ins 2 | . 2 . Cave-ins Triggered 1 | . 1 . Exploration Rate (%) 13 | 4 20 16 Regions Visited 2 Branch Regions 1 Pre-discovered Areas . | . . . Known Exits Taken . | . . . Unknown Exits Taken 2 | 1 1 . Scrap Searched . | . . . Spaces Dug 7 | . 7 . Terrain Destroyed 44 | . 44 . Melee 7 | . 7 . Projectile . | . . . AOE 37 | . 37 . Terrain Rammed . | . . . Walls Destroyed . | . . . Machines Disabled . | . . . Actions | -11 -10 -10 --------- Run | Yrd Mat Sub Total 575 | 66 279 230 Wait 13 | . 12 1 Move 485 | 50 224 211 Hop . | . . . Pick Up 22 | 10 8 4 Fast Attach . | . . . Attach 17 | 6 5 6 Detach . | . . . Swap 3 | . 3 . Drop 2 | . 2 . Fire 7 | . 7 . Melee 23 | . 15 8 Ram 3 | . 3 . Kick . | . . . Crush . | . . . Escape Stasis . | . . . Rewire . | . . . Trap . | . . . Miscellaneous . | . . . Route ------- -11/Scrapyard -10/Materials -10/Subcaves History --------- Turn | Location | Event 35 | -11/Scrapyard | Discovered new exit (range 15) 57 | -11/Scrapyard | Entered Materials 252 | -10/Materials | Crushed by falling debris 252 | -10/Materials | System corruption reached 10% 277 | -10/Materials | Discovered new exit (range 9) 283 | -10/Materials | Lost 3 parts (2n1w) 317 | -10/Materials | Build established: Mutant 535 | -10/Materials | Entered Subcaves 536 | -10/Subcaves | Approached by a straggling Scientist 578 | -10/Subcaves | Ambushed by Subdwellers from Twisted Machinery 710 | -10/Subcaves | Core integrity fell below 50% 768 | -10/Subcaves | Shifting Twisted Machinery released Multitool 769 | -10/Subcaves | Shifting Twisted Machinery released Sub. Monowheel 786 | -10/Subcaves | Core integrity fell below 20% 812 | -10/Subcaves | Learned 4 Materials zone layouts 824 | -10/Subcaves | Destroyed by EH-XG9(R) with Subdweller Beam Cannon Last Messages --------------- Terrain Scanner destroyed. 4L-1PU(c): "I think it's somewhere west of here" System corrupted: Component data lost. P64GH6WU4M3WF,P6INBR7R6PO Multitool falls loose from the Twisted Machinery. Sub. Monowheel falls loose from the Twisted Machinery. Acquired Multitool. 4L-1PU(c) destroyed. Aluminum Leg destroyed. Ion Engine destroyed. Subatomizers dissect the Lgt. Ion Engine. Acquired Sub. Monowheel. Subatomizers dissect the Lgt. Ion Engine. System corrupted: Component data lost. Heat Sink destroyed. Acquired derelict log, extracted data. Data stored: Materials zone layouts (x4). Mining Claw destroyed. Map ----- +----------------------------------------------------+ | ????????????????????????????????????????????????? | | ????????????????????????????????????????????????? | | ????????????????????????????????????????????????? | | ????????????????????????????????????????????????? | | ????????????????????????????????????????????????? | | ????????????????????????????????????????????????? | | ????????????????????????????????????????????????? | | ????????????????????????????????????????????????? | | ????????????????????????????????????????????????? | | ????????????????????????????????????????????????? | | ????????????????????????????????????????????????? | | ????????????????????????????????????????????????? | | ????????????????????????????????????????????????? | | ????????????????????????????????????????????????? | | ????????????????????????????????????????????????? | | ????????????????????????????????????????????????? | | ????????????????????????????????????????????????? | | ????????????????????????????????????????????????? | | ???????????????????????????####?????????????????? | | ????????????????????####??## #?????????????????? | | ????????????????????# #### ##???????????????#? | | ???????????????????## #####????????????? | | ???????????????????# ## ## "###???###????? | | ???????????????????## #######"" " ####""##???? | | ???????????????## # R # ##" "" """"#???# | | ???????????????# R@ "###" "*"##"#??## | | ???????????????## ### ####"" ""%##??####" | | ????????????????########?### #?#"""""#" #### " | | ???????????????????????????# ##?#"""##""# " | | ??????????????????????????#""""?#"""###"" | | ??????????????????????????#"""""# ""###"#" #"" | | ??????????????????????????## """ """?###" ### | | ???????????????????????????# """#"""??##" ##" | | ???????????????????????????# "???????## #"" " | | ???????????????????????????### ?????????""## " | | ?????????????????????????????? ?????????##### "" | | ?????????????????????????????? ????????????# " | | ?????????????????????????????? ????????????##" | | ??????????????????????????????? ????????????# # | | ????????????????????????????????????????????# | | ????????????????????????????????????????????## | | ?????????????????????????????????????????????# | | ?????????????????????????????????????????????# # | | ???????????????????????????????????????????#?#### | | ????????????????????????????????????????????????? | | ????????????????????????????????????#????#??????? | | ????????????????????????????????????????????????? | | ????????????????????????????????????????????????? | | ????????????????????????????????????????????????? | | ????????????????????????????????????????????????? | +----------------------------------------------------+ Best States ------------- Heat Dissipation 35 Energy Generation 10 Energy Capacity 250 Matter Stores 267 Matter Capacity 300 Sight Range 16 Terrain Scan Range 14 Terrain Scan Density 10 Evasion (%) 55 Item Schematics ----------------- None Robot Schematics ------------------ None Fabricated ------------ Nothing Repaired ---------- Nothing Studied --------- None Alien Tech Used ----------------- None Achievements -------------- None Challenges ------------ None Game ------ Seed AlertTowerCloak Manual? 0 Play Time 00:15:50 Cumulative 25.2 hours Start 2026.07.30 @ 06:51:21 End 2026.07.31 @ 05:48:04 Sessions 3 Manual Loads 0 Difficulty Rogue Special Mode None Game No. 46 Rogue 46 Adventurer 0 Explorer 0 Win Type - Total 0 Types 0/0/0/0/0/0/0/0/0/0 Lore% 10 Gallery% 21 Achievement% 13 Wizard Run 0 Options --------- Layout 1 ASCII 0 Keyboard 0 Movement Numpad Keybinds 0 Fullscreen 1 Font 32/SmallcapsGlow Map View 50x35 Zoom Use 0% Tactical HUD 0 Map Filters NONE Filters NONE Steam 1 RUN: 0324e712-be23-4466-95e8-4c3299482195